bitfinex-derivatives/quotes_SOLF0:USTF0_20250301
["timestamp","ask_amount","ask_price","bid_price","bid_amount"]
[1740800127753,10.54,147.19,147.07,217.62]
[1740800127952,15.9773,147.19,147.14,5.4387]
[1740800128453,0.04779339,147.17,147.15,0.04776507]
[1740800132355,5.48579339,147.17,147.1,5.4405]
[1740800132556,5.438,147.17,147.1,5.4405]
[1740800133553,0.04795916,147.15,147.12,0.04842351]
[1740800134053,0.04795916,147.15,147.13,5.4394]
[1740800134257,0.04795916,147.15,147.12,0.04842351]
[1740800134561,0.04795916,147.15,147.14,5.439]
[1740800135658,0.04795916,147.15,147.13,5.4391]
[1740800136058,0.04795916,147.15,147.12,0.04842351]
[1740800136453,0.04795916,147.15,147.12,5.48792351]
[1740800137254,0.04795916,147.15,147.13,5.4394]
[1740800139657,0.04795916,147.15,147.12,5.48802351]
[1740800140659,0.04795916,147.15,147.12,0.04842351]
[1740800141664,0.04795916,147.15,147.12,5.48812351]
[1740800141864,0.04795916,147.15,147.12,0.04842351]
[1740800143059,0.04795916,147.15,147.14,5.439]
[1740800144362,14.1277,147.21,147.12,0.04842351]
[1740800144562,14.1277,147.21,147.09,10.54]
[1740800144757,19.5642,147.21,147.09,202.54]
[1740800145160,14.1277,147.21,147.09,202.54]
[1740800145363,14.1277,147.21,147.16,5.4383]
[1740800145667,0.04822461,147.2,147.09,202.54]
[1740800145866,10.54,147.21,147.18,5.4373]
[1740800146062,0.04582508,147.16,147.09,202.54]
[1740800146259,10.54,147.21,147.13,0.05007891]
[1740800146457,7.0671,147.25,147.13,0.05007891]
[1740800146656,54.05182409,147.29,147.14,10.54]
[1740800146864,5.4354,147.24,147.15,3.6151]
[1740800147165,5.4354,147.24,147.18,5.4373]
[1740800147367,0.04346155,147.21,147.18,5.48054511]
[1740800147762,0.04346155,147.21,147.18,0.04324511]
[1740800149473,5.48016155,147.21,147.18,0.04324511]
[1740800151170,0.04346155,147.21,147.18,0.04324511]
[1740800155471,0.04346155,147.21,147.19,5.4369]
[1740800155670,0.04346155,147.21,147.18,0.04324511]
[1740800155870,19.8117,147.28,147.22,5.4359]
[1740800156068,14.3777,147.28,147.19,3.8299]
[1740800156271,38.81298535,147.29,147.19,3.8299]
[1740800157178,0.04857357,147.25,147.23,0.04336375]
[1740800159373,5.48357357,147.25,147.23,0.04336375]
[1740800159775,0.04857357,147.25,147.23,0.04336375]
[1740800160082,5.4353,147.24,147.23,0.04336375]
[1740800160480,5.4361,147.22,147.17,217.52]
[1740800160682,10.54,147.21,147.17,217.52]
[1740800160970,15.9767,147.21,147.17,217.52]
[1740800161173,15.9767,147.21,147.15,101.01343852]
[1740800161377,10.54,147.21,147.15,101.01343852]
[1740800161676,0.04505515,147.19,147.17,0.04386031]
[1740800161883,0.04505515,147.19,147.11,28.26226646]
[1740800162182,5.48225515,147.19,147.11,28.26226646]
[1740800162381,5.48225515,147.19,147.1,217.48]
[1740800162985,5.48225515,147.19,147.15,0.04645736]
[1740800167090,3.8228,147.18,147.15,0.04645736]
[1740800167486,5.4382,147.17,147.11,5.44]
[1740800167686,10.54,147.16,147.11,5.44]
[1740800168190,5.4389,147.15,147.1,217.48]
[1740800168789,0.04687379,147.14,147.11,0.04335224]
[1740800169600,5.48587379,147.14,147.11,0.04335224]
[1740800169789,0.04687379,147.14,147.11,0.04335224]
[1740800170191,5.4397,147.13,147.11,0.04335224]
[1740800170393,7.3791,147.12,147.04,3.6613]
[1740800170689,10.54,147.11,147.03,217.56]
[1740800171286,15.9803,147.11,147.04,5.4426]
[1740800171491,0.04404768,147.08,147.06,0.04460628]
[1740800175904,0.04404768,147.08,147.06,5.48650628]
[1740800176096,0.04404768,147.08,147.06,0.04460628]
[1740800177790,0.04404768,147.08,147.03,217.56]
[1740800177992,0.04404768,147.08,146.96,217.62]
[1740800178195,5.4415,147.08,147.01,5.4436]
[1740800178397,14.2314,147.11,146.96,217.62]
[1740800178597,19.6716,147.11,146.96,217.62]
[1740800178800,14.2314,147.11,146.96,217.62]
[1740800178995,0.05104513,147.05,147.03,0.04359142]
[1740800179293,14.2314,147.11,147.03,0.04359142]
[1740800179497,0.04640528,147.05,147.03,0.04359142]
[1740800179704,19.6716,147.11,147.04,5.4425]
[1740800179896,0.04625061,147.05,147.03,0.04359142]
[1740800180096,14.2314,147.11,146.96,217.62]
[1740800180405,5.4409,147.09,147.03,5.4428]
[1740800180698,0.04777563,147.05,147.03,0.04523099]
[1740800180895,14.2314,147.11,147.03,0.04523099]
[1740800181097,0.04430029,147.05,147.03,0.04523099]
[1740800181299,19.6716,147.11,147.05,5.442]
[1740800181691,0.0449594,147.09,147.07,0.04865979]
[1740800181897,19.6717,147.11,147.06,5.4419]
[1740800182203,0.05218788,147.09,147.07,0.04286407]
[1740800186004,5.49338788,147.09,147.07,0.04286407]
[1740800186199,3.71128788,147.09,147.07,0.04286407]
[1740800187500,5.4416,147.07,146.96,217.62]
[1740800187800,3.6591,147.09,146.96,217.62]
[1740800188407,5.4415,147.08,146.96,217.62]
[1740800188609,0.04479357,147.04,146.96,217.62]
[1740800188803,10.58479357,147.04,146.96,217.62]
[1740800189207,3.5022,147.03,146.96,217.62]
[1740800189608,5.4436,147.02,146.96,223.0655]
[1740800189809,0.04888095,147.01,146.96,217.62]
[1740800190310,0.04888095,147.01,146.98,5.4449]
[1740800190705,0.04888095,147.01,146.97,5.4451]
[1740800191004,0.04888095,147.01,146.96,217.62]
[1740800191310,0.04888095,147.01,146.98,5.4447]
[1740800191814,0.04888095,147.01,146.99,5.4445]
[1740800192213,0.04888095,147.01,146.87,375.58020359]
[1740800192511,7.2807,147.03,146.9,3.7208]
[1740800192810,5.4435,147.02,146.94,5.4462]
[1740800193011,0.04434807,146.98,146.94,5.4462]
[1740800194707,0.04434807,146.98,146.95,5.446]
[1740800196612,0.04434807,146.98,146.93,5.4467]
[1740800196914,0.04434807,146.98,146.88,7.2701]
[1740800197115,5.445,146.98,146.91,5.4473]
[1740800197411,0.04428197,146.94,146.88,11.0631]
[1740800198410,0.04428197,146.94,146.93,5.4468]
[1740800208029,10.54,147.01,146.98,5.4449]
[1740800208229,3.5022,147.03,146.91,10.54]
[1740800208530,14.0422,147.03,146.99,5.4443]
[1740800208721,14.0422,147.03,146.94,217.82]
[1740800208922,14.0422,147.03,146.95,3.7326]
[1740800209125,0.04942045,147.0,146.98,0.04601282]
[1740800211027,0.04942045,147.0,146.99,5.4446]
[1740800215937,0.04942045,147.0,146.98,0.04601282]
[1740800217442,0.04942045,147.0,146.99,5.4446]
[1740800218342,0.04942045,147.0,146.98,0.04601282]
[1740800219543,0.04942045,147.0,146.99,5.4446]
[1740800219738,0.04942045,147.0,146.98,0.04601282]
[1740800220044,0.04942045,147.0,146.98,5.49071282]
[1740800220343,0.04942045,147.0,146.98,0.04601282]
[1740800223450,0.04942045,147.0,146.99,5.4446]
[1740800224049,0.04942045,147.0,146.98,0.04601282]
[1740800224653,5.49362045,147.0,146.98,0.04601282]
[1740800224948,0.04942045,147.0,146.98,0.04601282]
[1740800225153,5.49372045,147.0,146.98,0.04601282]
[1740800226050,5.4446,146.99,146.98,0.04601282]
[1740800226255,0.04942045,147.0,146.94,217.82]
[1740800226751,5.445,146.98,146.94,217.82]
[1740800226950,10.54,146.98,146.94,217.82]
[1740800228549,10.54,146.98,146.89,3.5828]
[1740800228550,5.4453,146.97,146.89,3.5828]
[1740800228953,0.0500535,146.94,146.89,3.5828]
[1740800229146,0.0500535,146.94,146.9,5.4476]
[1740800229347,0.0500535,146.94,146.89,3.5828]
[1740800229857,0.0500535,146.94,146.91,5.4474]
[1740800230450,0.0500535,146.94,146.89,3.5828]
[1740800230649,0.0500535,146.94,146.89,5.4481]
[1740800233356,0.0500535,146.94,146.87,217.8]
[1740800233956,10.54,146.93,146.87,217.8]
[1740800234144,14.0583,146.93,146.87,217.8]
[1740800235049,14.0583,146.93,146.89,5.4482]
[1740800239556,0.0500535,146.94,146.87,217.8]
[1740800240459,0.0500535,146.94,146.93,5.4468]
[1740800243057,15.9843,147.0,146.87,217.8]
[1740800243255,15.9843,147.0,146.96,5.4456]
[1740800243664,10.54,147.0,146.96,5.4456]
[1740800244362,0.05033164,146.99,146.97,0.05031382]
[1740800247665,0.05033164,146.99,146.98,5.4449]
[1740800251063,0.05033164,146.99,146.97,0.05031382]
[1740800251765,0.05033164,146.99,146.98,5.4449]
[1740800254369,0.05033164,146.99,146.97,5.49541382]
[1740800254670,0.05033164,146.99,146.97,0.05031382]
[1740800255272,0.05033164,146.99,146.98,5.4449]
[1740800257971,0.05033164,146.99,146.97,5.49541382]
[1740800258174,0.05033164,146.99,146.97,0.05031382]
[1740800258575,0.05033164,146.99,146.98,5.4449]
[1740800259369,3.5535,147.07,146.98,3.4]
[1740800259564,10.54,147.09,146.97,10.54]
[1740800259772,10.54,147.11,146.97,30.96]
[1740800260079,118.50700402,147.12,147.08,5.4412]
[1740800260273,118.50700402,147.12,146.97,30.96]
[1740800260573,0.04369884,147.11,147.09,0.05180131]
[1740800260770,5.4405,147.1,147.02,217.78]
[1740800261079,0.0523134,147.11,147.09,0.05026919]
[1740800261275,118.50700402,147.12,147.02,221.4866]
[1740800261578,0.04736914,147.11,147.02,221.4866]
[1740800261879,104.10450402,147.12,147.06,0.05152228]
[1740800262075,0.04935326,147.08,147.07,5.4413]
[1740800262277,104.10450402,147.12,147.06,0.05152228]
[1740800262580,0.04395059,147.09,147.06,10.57152228]
[1740800262772,104.10450402,147.12,147.06,10.57152228]
[1740800262980,17.7878,147.17,147.06,10.57152228]
[1740800263166,17.7878,147.17,147.06,16.01312228]
[1740800263371,1.22133238,147.16,147.06,5.4416]
[1740800263569,1.22133238,147.16,147.03,3.8222]
[1740800263773,17.7878,147.17,147.06,5.4419]
[1740800263979,0.04658644,147.11,147.08,0.0519328]
[1740800264177,1.22124702,147.16,147.03,3.8222]
[1740800264378,0.04747609,147.11,147.08,0.04324027]
[1740800264985,0.04747609,147.11,147.09,5.4405]
[1740800265687,0.04747609,147.11,147.08,5.48444027]
[1740800266780,0.04747609,147.11,147.08,0.04324027]
[1740800267577,3.76117609,147.11,147.08,0.04324027]
[1740800269585,7.35047609,147.11,147.08,0.04324027]
[1740800269786,7.35047609,147.11,147.02,223.2232]
[1740800269987,9.2785,147.1,147.02,217.78]
[1740800270189,3.8379,147.1,147.02,217.78]
[1740800270786,0.05096465,147.07,147.05,0.04562399]
[1740800271288,0.05096465,147.07,147.06,5.4417]
[1740800273392,5.439,147.15,147.05,0.04562399]
[1740800273693,10.52,147.14,147.09,5.4407]
[1740800274692,0.04683543,147.13,147.1,0.04764458]
[1740800276090,10.56683543,147.13,147.1,0.04764458]
[1740800276596,5.44,147.12,147.1,0.04764458]
[1740800276797,5.44,147.12,147.03,3.5957]
[1740800276798,7.2324,147.12,147.03,3.5957]
[1740800277388,5.4403,147.11,147.05,5.4421]
[1740800277795,7.2324,147.12,147.02,217.78]
[1740800277996,0.04855726,147.09,147.07,0.04350221]
[1740800278891,5.48945726,147.09,147.07,0.04350221]
[1740800279092,10.52,147.08,147.07,0.04350221]
[1740800279884,10.52,147.08,147.02,223.2234]
[1740800281196,10.52,147.08,147.04,0.0452059]
[1740800281397,5.4416,147.07,147.04,0.0452059]
[1740800282099,19.7164,147.08,147.04,0.0452059]
[1740800282893,14.2749,147.08,147.04,0.0452059]
[1740800283398,3.7549,147.08,147.04,0.0452059]
[1740800284399,3.7549,147.08,147.05,5.4423]
[1740800285199,10.56855726,147.09,147.05,5.4423]
[1740800285495,0.04855726,147.09,147.04,0.0452059]
[1740800286199,0.04855726,147.09,147.08,5.4412]
[1740800288599,3.6263,147.16,147.13,5.4391]
[1740800289402,3.6263,147.16,147.14,5.439]
[1740800289805,3.67263475,147.16,147.14,5.48419146]
[1740800291007,3.67263475,147.16,147.14,0.04519146]
[1740800291498,9.11093475,147.16,147.14,0.04519146]
[1740800291695,3.67263475,147.16,147.14,0.04519146]
[1740800292002,5.4395,147.13,147.04,3.5385]
[1740800292607,5.4395,147.13,147.08,5.4411]
[1740800292810,5.4391,147.14,147.08,5.4411]
[1740800293107,0.04975409,147.12,147.09,0.04419087]
[1740800293304,0.04975409,147.12,147.09,5.48479087]
[1740800293510,0.04975409,147.12,147.09,0.04419087]
[1740800294304,0.04975409,147.12,147.1,5.4404]
[1740800296506,0.04975409,147.12,147.09,5.48499087]
[1740800296703,0.04975409,147.12,147.09,0.04419087]
[1740800297710,0.04975409,147.12,147.11,5.4401]
[1740800298717,0.04975409,147.12,147.1,5.4404]
[1740800298916,0.04975409,147.12,147.09,0.04419087]
[1740800299414,0.04975409,147.12,147.11,5.4401]
[1740800301114,10.52,147.2,147.16,5.4382]
[1740800301410,10.52,147.2,147.1,7.3502]
[1740800302010,5.4374,147.19,147.1,7.3502]
[1740800302216,10.52,147.2,147.1,7.3502]
[1740800302217,0.04571384,147.16,147.14,0.04623157]
[1740800303613,10.52,147.15,147.14,0.04623157]
[1740800304015,15.9586,147.15,147.09,5.4408]
[1740800305110,0.04651256,147.13,147.11,0.05233784]
[1740800306617,0.04651256,147.13,147.12,5.4398]
[1740800319925,0.04651256,147.13,147.11,5.49233784]
[1740800320123,0.04651256,147.13,147.11,0.05233784]
[1740800322421,0.04651256,147.13,147.12,5.4398]
[1740800332226,7.3384,147.22,147.18,5.4374]
[1740800332427,1.8033,147.21,147.12,10.5]
[1740800333434,0.0474061,147.18,147.15,0.0464526]
[1740800334126,0.0474061,147.18,147.16,5.438]
[1740800334437,0.0474061,147.18,147.15,0.0464526]
[1740800335131,0.0474061,147.18,147.17,5.4379]
[1740800337233,0.0474061,147.18,147.15,0.0464526]
[1740800337434,0.0474061,147.18,147.17,5.4379]
[1740800339931,0.0474061,147.18,147.15,0.0464526]
[1740800340538,0.0474061,147.18,147.16,5.4383]
[1740800340935,0.0474061,147.18,147.15,0.0464526]
[1740800341330,0.0474061,147.18,147.15,5.4848526]
[1740800344337,0.0474061,147.18,147.16,5.4382]
[1740800345335,0.0474061,147.18,147.15,5.4849526]
[1740800346137,0.0474061,147.18,147.16,5.4383]
[1740800346641,0.0474061,147.18,147.15,0.0464526]
[1740800346829,0.0474061,147.18,147.16,5.4381]
[1740800347555,0.0474061,147.18,147.15,0.0464526]
[1740800348238,0.0474061,147.18,147.15,5.4847526]
[1740800348840,0.0474061,147.18,147.15,0.0464526]
[1740800350142,5.4850061,147.18,147.15,0.0464526]
[1740800350443,0.0474061,147.18,147.15,0.0464526]
[1740800351938,0.0474061,147.18,147.16,5.4383]
[1740800352241,0.0474061,147.18,147.15,0.0464526]
[1740800352636,0.0474061,147.18,147.17,5.4379]
[1740800353340,59.73985638,147.26,147.17,3.4]
[1740800353537,59.73985638,147.26,147.16,12.4096]
[1740800353734,44.68951105,147.26,147.16,12.4096]
[1740800353934,44.68951105,147.26,147.22,5.4358]
[1740800354139,44.68951105,147.26,147.16,12.4096]
[1740800354539,0.05052498,147.22,147.2,0.0432026]
[1740800355047,0.05052498,147.22,147.21,5.4364]
[1740800356746,0.05052498,147.22,147.2,0.0432026]
[1740800357245,0.05052498,147.22,147.21,5.4364]
[1740800358141,1.8635,147.27,147.2,0.0432026]
[1740800358347,1.7504,147.32,147.21,10.5]
[1740800358547,1.7504,147.32,147.22,1.8939]
[1740800358947,1.7504,147.32,147.25,5.4349]
[1740800359136,1.7504,147.32,147.22,1.8939]
[1740800359339,0.05072771,147.3,147.27,0.04343363]
[1740800359546,0.05072771,147.3,147.21,10.5]
[1740800359547,10.5,147.29,147.21,5.4363]
[1740800360139,10.5,147.29,147.2,5.4367]
[1740800360336,3.5939,147.28,147.2,5.4367]
[1740800360539,10.5,147.29,147.19,217.5]
[1740800360741,0.05094018,147.25,147.23,5.48724072]
[1740800360941,1.22074886,147.31,147.23,5.4353]
[1740800361148,0.04648192,147.25,147.23,5.48304532]
[1740800361348,5.433,147.31,147.23,5.48304532]
[1740800361651,7.1829,147.32,147.24,5.4353]
[1740800361847,0.04700158,147.28,147.24,5.4353]
[1740800362151,0.04700158,147.28,147.27,0.04903705]
[1740800362337,0.04700158,147.28,147.27,5.48323705]
[1740800364151,43.34714902,147.36,147.27,3.44903705]
[1740800364351,48.77814902,147.36,147.22,10.5]
[1740800364549,28.27298535,147.36,147.22,202.5]
[1740800364846,7.2817,147.35,147.29,5.4332]
[1740800365056,1.8504,147.35,147.29,5.4332]
[1740800365246,5.4322,147.33,147.27,5.434]
[1740800365453,0.04977119,147.33,147.31,0.04474902]
[1740800365653,1.8504,147.35,147.22,202.5]
[1740800365956,5.4324,147.32,147.26,5.4343]
[1740800366649,0.05191243,147.3,147.26,5.4343]
[1740800366857,0.05191243,147.3,147.28,0.04997953]
[1740800367749,0.05191243,147.3,147.28,5.48377953]
[1740800368249,0.05191243,147.3,147.28,0.04997953]
[1740800371453,0.05191243,147.3,147.29,5.4335]
[1740800374855,0.05191243,147.3,147.28,0.04997953]
[1740800375951,5.4335,147.29,147.21,1.7977]
[1740800376455,7.2818,147.3,147.25,5.4348]
[1740800376861,1.8487,147.3,147.25,5.4348]
[1740800377045,0.04646773,147.29,147.26,0.04847684]
[1740800377653,0.04646773,147.29,147.26,5.48277684]
[1740800377953,0.04646773,147.29,147.26,0.04847684]
[1740800379460,0.04646773,147.29,147.28,5.4338]
[1740800381858,0.04646773,147.29,147.26,0.04847684]
[1740800382058,0.04646773,147.29,147.27,5.4341]
[1740800382457,0.04646773,147.29,147.26,5.48287684]
[1740800382964,0.04646773,147.29,147.26,0.04847684]
[1740800383659,0.04646773,147.29,147.27,5.434]
[1740800385260,0.04646773,147.29,147.28,5.4338]
[1740800388265,1.8911,147.37,147.35,5.4312]
[1740800388464,1.8791,147.39,147.27,1.8155]
[1740800388658,3.7642,147.39,147.27,1.8155]
[1740800388959,7.1954,147.38,147.27,1.8155]
[1740800389261,1.7652,147.38,147.27,1.8155]
[1740800389560,1.7652,147.38,147.34,5.4316]
[1740800389956,0.04438268,147.37,147.35,0.04313085]
[1740800392465,0.04438268,147.37,147.24,217.34]
[1740800392767,1.22338726,147.37,147.19,54.97695682]
[1740800393166,5.4328,147.31,147.22,5.436]
[1740800393367,10.48,147.31,147.19,65.45695682]
[1740800393566,1.7999,147.3,147.19,65.45695682]
[1740800393766,0.04366251,147.27,147.25,0.04311812]
[1740800394069,0.04366251,147.27,147.21,9.42326754]
[1740800394367,10.48,147.26,147.21,9.42326754]
[1740800395067,10.48,147.26,147.22,0.04694386]
[1740800395455,10.48,147.26,147.21,9.42326754]
[1740800395660,5.4356,147.24,147.21,9.42326754]
[1740800396560,5.48481496,147.24,147.21,9.46866401]
[1740800396961,5.48481496,147.24,147.21,0.04539647]
[1740800397760,0.04921496,147.24,147.21,0.04539647]
[1740800397962,5.48481496,147.24,147.21,0.04539647]
[1740800398161,0.04921496,147.24,147.21,0.04539647]
[1740800398864,5.4361,147.22,147.16,217.32]
[1740800399070,1.8908,147.23,147.16,217.32]
[1740800400071,0.05160098,147.21,147.16,217.32]
[1740800404966,10.53160098,147.21,147.11,1.7711]
[1740800405170,10.48,147.21,147.11,1.7711]
[1740800405369,0.04729473,147.17,147.12,5.4395]
[1740800406170,0.04729473,147.17,147.13,5.4394]
[1740800407079,0.04729473,147.17,147.11,1.7711]
[1740800407373,0.04729473,147.17,147.09,227.92]
[1740800407579,0.04729473,147.17,147.09,217.44]
[1740800408377,0.04729473,147.17,147.12,5.4397]
[1740800409973,0.04729473,147.17,147.09,217.44]
[1740800410178,3.68399473,147.17,147.11,5.44]
[1740800412081,3.68399473,147.17,147.09,217.44]
[1740800412879,3.68399473,147.17,147.12,5.4394]
[1740800415072,0.04729473,147.17,147.1,10.48]
[1740800415273,0.04729473,147.17,147.11,1.8333]
[1740800415473,0.04729473,147.17,147.16,5.4383]
[1740800417071,1.7606,147.25,147.22,5.4358]
[1740800417473,1.7606,147.25,147.15,10.48]
[1740800417674,3.6834,147.29,147.15,10.48]
[1740800417874,14.1634,147.29,147.15,10.48]
[1740800418081,0.05215653,147.23,147.21,0.05034779]
[1740800418283,14.1634,147.29,147.21,0.05034779]
[1740800418576,0.05090128,147.23,147.21,0.05034779]
[1740800418776,0.05130674,147.26,147.23,5.4355]
[1740800419379,0.05130674,147.26,147.24,5.4351]
[1740800420284,0.05130674,147.26,147.23,0.04842748]
[1740800421073,3.45130674,147.26,147.11,1.8333]
[1740800421272,5.4363,147.22,147.14,5.4388]
[1740800421577,14.2376,147.21,147.09,217.44]
[1740800422174,0.04625225,147.16,147.09,217.44]
[1740800422881,0.04625225,147.16,147.14,5.4388]
[1740800423084,0.04625225,147.16,147.09,217.44]
[1740800423273,0.04625225,147.16,147.15,5.4386]
[1740800423685,0.04625225,147.16,147.09,217.44]
[1740800424384,0.04625225,147.16,147.15,5.4386]
[1740800425384,0.04625225,147.16,147.14,5.4389]
[1740800426186,0.04625225,147.16,147.15,5.4386]
[1740800426688,0.04625225,147.16,147.13,5.4391]
[1740800426983,0.04625225,147.16,147.09,217.44]
[1740800428682,10.52625225,147.16,147.09,217.44]
[1740800428885,5.4391,147.14,147.09,217.44]
[1740800429189,1.856,147.13,147.05,1.812]
[1740800429487,1.90383954,147.13,147.07,5.4415]
[1740800431185,1.90383954,147.13,147.08,5.4412]
[1740800432295,7.34323954,147.13,147.07,5.4415]
[1740800432582,1.90383954,147.13,147.03,1.8494]
[1740800432784,1.856,147.13,147.03,1.8494]
[1740800432988,0.04967476,147.1,147.03,1.8494]
[1740800433193,10.52967476,147.1,147.06,5.4418]
[1740800434385,10.52967476,147.1,147.03,1.8494]
[1740800434589,10.52967476,147.1,147.04,106.52449627]
[1740800435196,10.52967476,147.1,147.04,5.4425]
[1740800436489,15.97017476,147.1,147.04,5.4425]
[1740800437986,10.52967476,147.1,147.02,218.36829113]
[1740800438992,5.4414,147.08,147.02,218.36829113]
[1740800439492,0.04321423,147.06,147.02,218.36829113]
[1740800439894,0.04321423,147.06,147.02,217.52]
[1740800440096,10.48,147.05,146.99,7.3701]
[1740800440394,10.48,147.05,146.99,5.4445]
[1740800440783,15.9226,147.05,146.99,5.4445]
[1740800440986,10.48,147.05,146.99,5.4445]
[1740800442691,10.48,147.05,146.96,1.8393]
[1740800442893,12.2583,147.05,146.97,5.4451]
[1740800443088,0.04535443,147.02,146.97,5.4451]
[1740800444090,0.04535443,147.02,146.98,5.4448]
[1740800445697,0.04535443,147.02,146.99,5.4445]
[1740800447093,0.04535443,147.02,146.96,1.8393]
[1740800447599,0.04535443,147.02,147.01,5.4438]
[1740800448698,1.9069,147.11,146.97,10.48]
[1740800449092,10.48,147.13,146.97,30.9]
[1740800449294,10.48,147.13,147.09,5.4406]
[1740800449693,0.04941989,147.12,147.1,0.04874177]
[1740800449899,0.04941989,147.12,147.04,1.827]
[1740800450200,10.48,147.13,147.1,0.04394465]
[1740800450400,10.48,147.13,147.09,5.4409]
[1740800450701,10.53092183,147.13,147.1,0.04768236]
[1740800452799,10.53092183,147.13,147.1,5.48788236]
[1740800454002,0.05092183,147.13,147.11,5.4398]
[1740800454393,0.05092183,147.13,147.1,0.04768236]
[1740800454594,12.2362,147.18,147.15,5.4383]
[1740800454906,10.48,147.18,147.08,10.48]
[1740800455800,6.243e-05,147.14,147.12,0.04849055]
[1740800455998,6.243e-05,147.14,147.08,202.48]
[1740800456206,1.796,147.22,147.08,205.88]
[1740800456396,1.796,147.22,147.08,202.48]
[1740800456600,10.48,147.24,147.08,202.48]
[1740800457101,0.04612884,147.17,147.15,0.04357433]
[1740800457303,5.4364,147.22,147.08,202.48]
[1740800457505,0.04849782,147.17,147.15,0.04435371]
[1740800457702,10.48,147.24,147.08,202.48]
[1740800457906,0.04795172,147.17,147.15,0.04394913]
[1740800458204,10.48,147.24,147.08,202.48]
[1740800458402,0.0494512,147.17,147.15,0.048678]
[1740800458601,1.2241274,147.23,147.08,202.48]
[1740800458803,0.0481413,147.17,147.15,0.05010243]
[1740800459107,5.437,147.2,147.15,0.05010243]
[1740800459301,0.05199895,147.17,147.15,0.05010243]
[1740800459503,1.9271,147.23,147.15,0.05010243]
[1740800459806,1.22363539,147.22,147.15,0.05010243]
[1740800460002,0.044873,147.2,147.15,0.05010243]
[1740800460205,5.4383,147.16,147.15,0.05010243]
[1740800460408,10.48,147.19,147.15,0.05010243]
[1740800460706,0.05087206,147.17,147.15,0.05010243]
[1740800461705,0.05087206,147.17,147.15,5.48850243]
[1740800461905,0.05087206,147.17,147.15,0.05010243]
[1740800464906,0.05087206,147.17,147.05,217.68]
[1740800464907,10.48,147.16,147.05,217.68]
[1740800465109,5.4401,147.11,147.05,5.4421]
[1740800465311,10.48,147.1,147.05,5.4421]
[1740800465504,10.48,147.1,147.01,11.27372843]
[1740800466010,0.04363572,147.07,147.04,0.0446141]
[1740800467210,10.52363572,147.07,147.04,0.0446141]
[1740800471413,10.52363572,147.07,147.04,5.4873141]
[1740800471912,10.52363572,147.07,147.04,0.0446141]
[1740800475711,10.52363572,147.07,147.05,5.4423]
[1740800477311,10.52363572,147.07,147.06,5.442]
[1740800478215,10.52363572,147.07,147.05,5.4422]
[1740800478712,0.04363572,147.07,147.04,0.0446141]
[1740800478911,0.04363572,147.07,147.06,5.442]
[1740800483718,10.48,147.14,147.04,0.0446141]
[1740800484020,12.409,147.15,147.01,1.9209]
[1740800484924,0.05119986,147.09,147.08,5.4412]
[1740800485121,5.4395,147.13,147.01,1.9209]
[1740800485325,0.05021407,147.1,147.07,0.04867543]
[1740800485624,0.05021407,147.1,147.09,5.4408]
[1740800487426,0.05021407,147.1,147.08,5.4411]
[1740800487722,0.05021407,147.1,147.07,0.04867543]
[1740800488120,0.05021407,147.1,147.09,5.4409]
[1740800498220,0.05021407,147.1,147.08,5.4411]
[1740800499623,0.05021407,147.1,147.07,0.04867543]
[1740800500127,0.05021407,147.1,147.08,5.4409]
[1740800501735,0.05021407,147.1,147.09,5.4409]
[1740800505631,0.05021407,147.1,147.08,5.4411]
[1740800506038,0.05021407,147.1,147.07,0.04867543]
[1740800506729,0.05021407,147.1,147.09,5.4409]
[1740800510139,0.05021407,147.1,147.08,5.4411]
[1740800510532,0.05021407,147.1,147.07,0.04867543]
[1740800511336,5.49081407,147.1,147.07,0.04867543]
[1740800511536,1.9083,147.09,147.07,0.04867543]
[1740800512037,1.9083,147.09,147.08,5.4412]
[1740800513943,0.05021407,147.1,147.07,0.04867543]
[1740800514151,0.05021407,147.1,147.09,5.4409]
[1740800516845,0.05021407,147.1,147.08,5.4411]
[1740800517045,0.05021407,147.1,147.07,0.04867543]
[1740800518546,0.05021407,147.1,147.07,5.48997543]